[Event "Kadettallsvenskan 2018, sodra kvalet"]
[Site "Vegagatan 20, Gothenburg, Sweden"]
[Date "2018.04.14"]
[Round "1.7"]
[White "Nabbing, Oscar"]
[Black "Jonsson, Oscar"]
[Result "1/2-1/2"]
[TimeControl "45 minutes for the whole game + 10 seconds per move from move one."]
[WhiteFideId "1738313"]
[BlackFideId "1729977"]
[WhiteElo "1456"]
[BlackElo "1755"]

1. e4 {[%clk 00:45:12]} {[%emt 00:00:08]} e5 {[%clk 00:45:19]} {[%emt
00:00:02]} 2. Nc3 {[%clk 00:44:45]} {[%emt 00:00:37]} Nf6 {[%clk 00:44:59]}
{[%emt 00:00:30]} 3. f4 {[%clk 00:44:08]} {[%emt 00:00:48]} d6 {[%clk
00:43:09]} {[%emt 00:02:00]} 4. Nf3 {[%clk 00:43:43]} {[%emt 00:00:34]} Bg4
{[%clk 00:34:40]} {[%emt 00:08:40]} 5. Be2 {[%clk 00:37:57]} {[%emt 00:05:56]}
Nbd7 {[%clk 00:34:13]} {[%emt 00:00:37]} 6. O-O {[%clk 00:36:10]} {[%emt
00:01:56]} Be7 {[%clk 00:32:33]} {[%emt 00:01:51]} 7. d3 {[%clk 00:31:08]}
{[%emt 00:04:52]} O-O {[%clk 00:29:12]} 8. fxe5 {[%clk 00:31:08]} dxe5 {[%clk
00:29:12]} {[%emt 00:04:10]} 9. Qe1 {[%clk 00:22:51]} Bc5+ {[%clk 00:25:27]}
{[%emt 00:12:23]} 10. Kh1 {[%clk 00:20:24]} Qe7 {[%clk 00:21:19]} {[%emt
00:06:26]} 11. Bg5 {[%clk 00:14:47]} {[%emt 00:05:09]} Qe6 12. Bh4 {[%emt
00:02:32]} h6 {[%emt 00:00:29]} 13. Bg3 {[%clk 00:12:28]} {[%emt 00:02:18]} c6
{[%clk 00:14:16]} {[%emt 00:05:59]} 14. Nh4 {[%clk 00:11:14]} {[%emt 00:01:23]}
Bxe2 {[%clk 00:09:20]} {[%emt 00:05:06]} 15. Qxe2 {[%clk 00:10:04]} {[%emt
00:01:21]} Ne8 {[%clk 00:08:54]} {[%emt 00:00:37]} 16. Nf3 {[%clk 00:09:25]}
{[%emt 00:00:49]} Nef6 {[%clk 00:08:29]} {[%emt 00:00:34]} 17. Bf2 {[%clk
00:09:21]} Bxf2 {[%clk 00:07:58]} {[%emt 00:00:54]} 18. Qxf2 {[%clk 00:09:29]}
{[%emt 00:00:14]} Ng4 {[%clk 00:07:53]} 19. Qe2 {[%clk 00:09:29]} Rad8 {[%clk
00:07:53]} {[%emt 00:00:24]} 20. h3 {[%clk 00:09:16]} {[%emt 00:00:23]} Ngf6
{[%clk 00:08:02]} {[%emt 00:00:01]} 21. a3 {[%clk 00:09:04]} {[%emt 00:00:21]}
Nh5 {[%clk 00:08:10]} {[%emt 00:00:02]} 22. Qf2 {[%clk 00:08:55]} {[%emt
00:00:19]} Nf4 {[%clk 00:08:02]} {[%emt 00:00:17]} 23. Kh2 {[%clk 00:08:34]}
{[%emt 00:00:31]} b6 {[%clk 00:07:23]} {[%emt 00:00:50]} 24. Ne2 {[%clk
00:08:32]} {[%emt 00:00:12]} Nxe2 {[%clk 00:07:19]} {[%emt 00:00:14]} 25. Qxe2
{[%clk 00:08:40]} {[%emt 00:00:02]} Nc5 {[%clk 00:07:19]} {[%emt 00:00:10]} 26.
Rfd1 {[%clk 00:08:37]} {[%emt 00:00:13]} Qf6 {[%clk 00:06:23]} {[%emt
00:01:07]} 27. Qf2 {[%clk 00:07:59]} {[%emt 00:00:48]} Ne6 {[%clk 00:06:23]}
{[%emt 00:00:10]} 28. g3 {[%clk 00:07:25]} {[%emt 00:00:44]} Nd4 {[%clk
00:06:07]} {[%emt 00:00:26]} 29. Kg2 {[%clk 00:07:22]} {[%emt 00:00:12]} Rd6
{[%clk 00:05:38]} {[%emt 00:00:39]} 30. Nxd4 {[%clk 00:07:21]} {[%emt
00:00:11]} Qxf2+ {[%clk 00:05:33]} {[%emt 00:00:15]} 31. Kxf2 {[%clk 00:07:29]}
{[%emt 00:00:02]} exd4 {[%clk 00:05:41]} {[%emt 00:00:02]} 32. Kg2 {[%clk
00:07:37]} {[%emt 00:00:02]} Re8 {[%clk 00:05:48]} {[%emt 00:00:04]} 33. Rf1
{[%clk 00:07:43]} {[%emt 00:00:03]} Re5 {[%clk 00:05:48]} {[%emt 00:00:11]} 34.
Rf2 {[%clk 00:07:43]} {[%emt 00:00:09]} a5 {[%clk 00:05:30]} {[%emt 00:00:28]}
35. Raf1 {[%clk 00:07:46]} {[%emt 00:00:07]} Rd7 {[%clk 00:05:36]} {[%emt
00:00:05]} 36. Rf5 {[%clk 00:07:51]} {[%emt 00:00:04]} Rde7 {[%clk 00:05:37]}
{[%emt 00:00:08]} 37. g4 {[%clk 00:07:52]} {[%emt 00:00:10]} f6 {[%clk
00:05:43]} {[%emt 00:00:05]} 38. Kg3 {[%clk 00:07:54]} {[%emt 00:00:08]} Kf7
{[%clk 00:05:42]} {[%emt 00:00:11]} 39. Rxe5 {[%clk 00:07:26]} {[%emt
00:00:38]} Rxe5 {[%clk 00:05:50]} {[%emt 00:00:02]} 40. Rf5 {[%clk 00:07:35]}
Ke6 {[%clk 00:05:56]} {[%emt 00:00:04]} 41. Kf4 {[%clk 00:07:30]} {[%emt
00:00:14]} g5+ {[%clk 00:06:02]} {[%emt 00:00:04]} 42. Kg3 {[%clk 00:07:30]}
{[%emt 00:00:10]} Rxf5 {[%clk 00:05:51]} {[%emt 00:00:20]} 43. exf5+ {[%clk
00:07:29]} {[%emt 00:00:11]} Ke5 {[%clk 00:05:58]} {[%emt 00:00:03]} 44. Kf3
{[%clk 00:07:37]} {[%emt 00:00:01]} a4 {[%clk 00:06:07]} {[%emt 00:00:03]} 45.
b3 {[%clk 00:06:59]} {[%emt 00:00:48]} b5 {[%clk 00:06:15]} {[%emt 00:00:02]}
46. Kg3 {[%clk 00:06:54]} {[%emt 00:00:15]} Kd5 {[%clk 00:06:21]} {[%emt
00:00:04]} 47. Kf3 {[%clk 00:06:59]} {[%emt 00:00:04]} c5 {[%clk 00:06:07]}
{[%emt 00:00:25]} 48. bxa4 {[%clk 00:06:47]} {[%emt 00:00:23]} bxa4 {[%clk
00:06:15]} {[%emt 00:00:02]} 49. Ke2 {[%clk 00:06:49]} {[%emt 00:00:07]} Kd6
{[%clk 00:04:57]} {[%emt 00:01:29]} 50. Kf3 {[%clk 00:06:55]} {[%emt 00:00:04]}
Ke5 {[%clk 00:05:05]} {[%emt 00:00:01]} 51. Kg3 {[%clk 00:07:02]} {[%emt
00:00:03]} Kd5 {[%clk 00:05:14]} {[%emt 00:00:01]} 52. Kf3 {[%clk 00:06:49]}
{[%emt 00:00:22]} c4 {[%clk 00:05:23]} {[%emt 00:00:02]} 53. Ke2 {[%clk
00:06:49]} {[%emt 00:00:10]} c3 {[%clk 00:05:04]} {[%emt 00:00:29]} 54. Kf3
{[%clk 00:06:41]} {[%emt 00:00:17]} Ke5 {[%clk 00:05:11]} {[%emt 00:00:04]} 55.
Kg3 {[%clk 00:06:49]} {[%emt 00:00:02]} 1/2-1/2

[Event "Kadettallsvenskan 2018, sodra kvalet"]
[Site "Vegagatan 20, Gothenburg, Sweden"]
[Date "2018.04.14"]
[Round "1.8"]
[White "Soderquist, Olof"]
[Black "Carlander-Strandang, Love"]
[Result "0-1"]
[TimeControl "45 minutes for the whole game + 10 seconds per move from move one."]
[WhiteFideId "1745093"]
[BlackFideId "1739689"]
[WhiteElo "1359"]
[BlackElo "1339"]

1. e4 {[%clk 00:45:16]} {[%emt 00:00:03]} e5 {[%clk 00:45:10]} {[%emt
00:00:10]} 2. Nc3 {[%clk 00:45:12]} {[%emt 00:00:13]} Bc5 {[%emt 00:00:56]} 3.
Nf3 {[%clk 00:44:02]} {[%emt 00:00:56]} d6 {[%clk 00:44:20]} {[%emt 00:00:38]}
4. Bc4 {[%clk 00:41:51]} {[%emt 00:02:21]} Nc6 {[%clk 00:43:12]} {[%emt
00:01:19]} 5. b3 {[%clk 00:38:30]} {[%emt 00:03:30]} Nf6 {[%clk 00:42:35]}
{[%emt 00:00:48]} 6. Ng5 {[%emt 00:06:12]} O-O {[%emt 00:00:33]} 7. Nd5 {[%emt
00:01:07]} Nxd5 {[%emt 00:02:53]} 8. exd5 {[%clk 00:27:35]} {[%emt 00:02:58]}
Qxg5 {[%clk 00:40:03]} {[%emt 00:00:43]} 9. O-O {[%clk 00:22:42]} {[%emt
00:05:02]} Nd4 {[%clk 00:39:06]} {[%emt 00:01:08]} 10. g3 {[%clk 00:19:07]}
{[%emt 00:03:45]} Qg6 {[%clk 00:38:15]} {[%emt 00:01:02]} 11. Bd3 {[%clk
00:18:09]} {[%emt 00:01:07]} e4 {[%clk 00:36:52]} {[%emt 00:01:34]} 12. Bc4
{[%clk 00:14:37]} {[%emt 00:03:41]} Bg4 {[%clk 00:35:15]} {[%emt 00:01:48]} 13.
f3 {[%clk 00:08:59]} {[%emt 00:05:48]} Ne2+ {[%clk 00:30:55]} {[%emt 00:04:31]}
14. Kg2 {[%clk 00:07:58]} {[%emt 00:01:10]} exf3+ {[%clk 00:29:55]} {[%emt
00:01:10]} 15. Rxf3 {[%clk 00:07:27]} {[%emt 00:00:41]} Bxf3+ {[%clk 00:29:51]}
{[%emt 00:00:15]} 16. Kxf3 {[%clk 00:07:08]} {[%emt 00:00:28]} Nd4+ {[%clk
00:29:49]} {[%emt 00:00:12]} 17. Kg2 {[%clk 00:05:30]} {[%emt 00:01:48]} Rfe8
{[%clk 00:28:53]} {[%emt 00:01:06]} 18. Bd3 {[%clk 00:04:47]} {[%emt 00:00:53]}
Qf6 {[%clk 00:27:57]} {[%emt 00:01:06]} 19. Bb2 {[%clk 00:04:06]} {[%emt
00:00:51]} Qe5 {[%clk 00:25:56]} {[%emt 00:02:11]} 20. Qg4 {[%clk 00:03:23]}
{[%emt 00:00:53]} g6 {[%clk 00:25:04]} {[%emt 00:01:02]} 21. c3 {[%clk
00:03:17]} {[%emt 00:00:16]} Qxd5+ {[%clk 00:24:38]} {[%emt 00:00:36]} 22. cxd4
{[%clk 00:03:15]} {[%emt 00:00:13]} 0-1

[Event "Kadettallsvenskan 2018, sodra kvalet"]
[Site "Vegagatan 20, Gothenburg, Sweden"]
[Date "2018.04.14"]
[Round "1.9"]
[White "Olofsson, Klara"]
[Black "Sjo, Simon"]
[Result "0-1"]
[TimeControl "45 minutes for the whole game + 10 seconds per move from move one."]
[WhiteFideId "1745182"]
[BlackFideId "1738615"]
[WhiteElo "1221"]
[BlackElo "1340"]

1. d4 {[%clk 00:45:17]} {[%emt 00:00:02]} d5 {[%clk 00:45:18]} {[%emt
00:00:02]} 2. Nf3 {[%clk 00:45:20]} {[%emt 00:00:08]} c5 {[%clk 00:45:18]}
{[%emt 00:00:10]} 3. e3 {[%clk 00:45:15]} {[%emt 00:00:14]} Bg4 {[%clk
00:45:21]} {[%emt 00:00:08]} 4. Be2 {[%clk 00:45:08]} {[%emt 00:00:17]} Nc6
{[%clk 00:45:13]} {[%emt 00:00:19]} 5. O-O {[%clk 00:44:56]} {[%emt 00:00:21]}
Nf6 {[%clk 00:45:01]} {[%emt 00:00:22]} 6. b3 {[%clk 00:44:30]} {[%emt
00:00:35]} e6 {[%clk 00:44:18]} {[%emt 00:00:54]} 7. Bb2 {[%clk 00:44:18]}
{[%emt 00:00:22]} Be7 {[%clk 00:44:12]} {[%emt 00:00:16]} 8. Nbd2 {[%clk
00:43:38]} {[%emt 00:00:50]} O-O {[%clk 00:43:56]} {[%emt 00:00:26]} 9. Ne5
{[%clk 00:43:19]} {[%emt 00:00:30]} Bxe2 {[%clk 00:43:36]} {[%emt 00:00:30]} 10.
Qxe2 {[%clk 00:43:21]} {[%emt 00:00:08]} Nxe5 {[%clk 00:42:59]} {[%emt
00:00:47]} 11. dxe5 {[%clk 00:43:18]} {[%emt 00:00:13]} Nd7 {[%clk 00:42:57]}
{[%emt 00:00:13]} 12. f4 {[%clk 00:41:22]} {[%emt 00:02:06]} a6 {[%clk
00:42:31]} {[%emt 00:00:36]} 13. Qg4 {[%clk 00:39:56]} {[%emt 00:01:35]} g6
{[%clk 00:41:07]} {[%emt 00:01:35]} 14. f5 {[%clk 00:37:44]} {[%emt 00:02:22]}
h5 {[%clk 00:40:32]} {[%emt 00:00:45]} 15. Qg3 {[%clk 00:37:01]} {[%emt
00:00:51]} Bh4 {[%clk 00:40:34]} {[%emt 00:00:10]} 16. Qf4 {[%clk 00:35:58]}
{[%emt 00:01:13]} exf5 {[%clk 00:39:26]} {[%emt 00:01:18]} 17. Nf3 {[%clk
00:34:56]} {[%emt 00:01:11]} Be7 {[%clk 00:38:44]} {[%emt 00:00:52]} 18. Qh6
{[%clk 00:33:34]} {[%emt 00:01:30]} Rc8 {[%clk 00:37:42]} {[%emt 00:01:14]} 19.
e6 {[%clk 00:33:13]} {[%emt 00:00:31]} Nf6 {[%clk 00:37:49]} {[%emt 00:00:04]}
20. Ng5 {[%clk 00:32:43]} {[%emt 00:00:39]} d4 {[%clk 00:36:04]} {[%emt
00:01:55]} 21. exf7+ {[%clk 00:31:20]} {[%emt 00:01:32]} Rxf7 {[%clk 00:36:12]}
{[%emt 00:00:02]} 22. Qxg6+ {[%clk 00:28:53]} {[%emt 00:02:37]} Rg7 {[%clk
00:36:11]} {[%emt 00:00:11]} 23. Qxg7+ {[%clk 00:28:52]} {[%emt 00:00:11]} Kxg7
{[%clk 00:36:09]} {[%emt 00:00:12]} 24. Ne6+ {[%clk 00:28:58]} {[%emt
00:00:04]} Kg6 {[%clk 00:36:12]} {[%emt 00:00:07]} 25. Nxd8 {[%clk 00:28:56]}
{[%emt 00:00:12]} Rxd8 {[%clk 00:36:18]} {[%emt 00:00:04]} 26. exd4 {[%clk
00:28:16]} {[%emt 00:00:49]} cxd4 {[%clk 00:36:24]} {[%emt 00:00:04]} 27. Rf4
{[%clk 00:27:19]} {[%emt 00:01:07]} Ne4 {[%clk 00:35:47]} {[%emt 00:00:47]} 28.
Raf1 {[%clk 00:25:53]} {[%emt 00:01:24]} Rd5 {[%clk 00:34:39]} {[%emt
00:01:31]} 29. g3 {[%clk 00:22:50]} {[%emt 00:03:08]} Bg5 {[%clk 00:34:32]}
{[%emt 00:00:22]} 30. Bc1 {[%clk 00:18:20]} {[%emt 00:04:40]} Bxf4 {[%clk
00:34:14]} {[%emt 00:00:28]} 31. Bxf4 {[%clk 00:17:46]} {[%emt 00:00:42]} Nc3
{[%clk 00:34:10]} {[%emt 00:00:15]} 32. a3 {[%clk 00:16:53]} {[%emt 00:01:04]}
d3 {[%clk 00:32:31]} {[%emt 00:01:48]} 33. cxd3 {[%clk 00:15:36]} {[%emt
00:01:27]} Rxd3 {[%clk 00:32:38]} {[%emt 00:00:03]} 34. Re1 {[%clk 00:14:29]}
{[%emt 00:01:17]} Ne4 {[%clk 00:32:35]} {[%emt 00:00:13]} 35. Re3 {[%clk
00:13:14]} {[%emt 00:01:21]} Rd1+ {[%clk 00:31:28]} {[%emt 00:01:21]} 36. Kg2
{[%clk 00:13:09]} {[%emt 00:00:15]} Rd2+ {[%clk 00:31:35]} {[%emt 00:00:03]} 37.
Kf3 {[%clk 00:12:48]} {[%emt 00:00:32]} Rf2# {[%clk 00:31:41]} {[%emt
00:00:03]} 0-1

[Event "Kadettallsvenskan 2018, sodra kvalet"]
[Site "Vegagatan 20, Gothenburg, Sweden"]
[Date "2018.04.14"]
[Round "2.1"]
[White "Nilsson, Kajsa"]
[Black "Szczepanowski, Tomasz"]
[Result "0-1"]
[TimeControl "45 minutes for the whole game + 10 seconds per move from move one."]
[WhiteFideId "1725157"]
[BlackFideId "21800286"]
[WhiteElo "1693"]
[BlackElo "1913"]

1. e4 {[%clk 00:45:14]} {[%emt 00:00:05]} c5 {[%clk 00:45:11]} {[%emt
00:00:09]} 2. c3 {[%clk 00:45:05]} {[%emt 00:00:20]} Nf6 {[%clk 00:44:58]}
{[%emt 00:00:22]} 3. e5 {[%clk 00:44:54]} {[%emt 00:00:21]} Nd5 {[%clk
00:44:46]} {[%emt 00:00:22]} 4. d4 {[%clk 00:44:41]} {[%emt 00:00:23]} e6
{[%clk 00:44:00]} {[%emt 00:00:57]} 5. Nf3 {[%clk 00:43:58]} {[%emt 00:00:53]}
cxd4 {[%clk 00:44:02]} {[%emt 00:00:08]} 6. cxd4 {[%clk 00:41:47]} {[%emt
00:02:22]} d6 {[%clk 00:43:36]} {[%emt 00:00:35]} 7. Bc4 {[%clk 00:38:47]}
{[%emt 00:03:09]} dxe5 {[%clk 00:42:49]} {[%emt 00:00:57]} 8. dxe5 {[%clk
00:37:02]} {[%emt 00:01:55]} Bb4+ {[%clk 00:42:26]} {[%emt 00:00:33]} 9. Bd2
{[%clk 00:35:30]} {[%emt 00:01:42]} Bxd2+ {[%clk 00:42:21]} {[%emt 00:00:15]}
10. Nbxd2 {[%clk 00:34:31]} {[%emt 00:01:09]} O-O {[%clk 00:42:18]} {[%emt
00:00:13]} 11. O-O {[%clk 00:34:31]} {[%emt 00:00:10]} Nd7 {[%clk 00:40:35]}
{[%emt 00:01:53]} 12. Re1 {[%clk 00:33:24]} {[%emt 00:01:18]} N7b6 {[%clk
00:40:35]} {[%emt 00:00:10]} 13. Bb3 {[%clk 00:33:14]} {[%emt 00:00:20]} Bd7
{[%clk 00:40:05]} {[%emt 00:00:40]} 14. Ne4 {[%clk 00:31:42]} {[%emt 00:01:42]}
Bc6 {[%clk 00:39:28]} {[%emt 00:00:48]} 15. Rc1 {[%clk 00:28:59]} {[%emt
00:02:53]} Qe7 {[%clk 00:38:57]} {[%emt 00:00:40]} 16. Nd4 {[%clk 00:27:02]}
{[%emt 00:02:08]} Rac8 {[%clk 00:37:59]} {[%emt 00:01:07]} 17. Nd6 {[%clk
00:23:17]} {[%emt 00:03:55]} Rc7 {[%clk 00:37:37]} {[%emt 00:00:32]} 18. Nxc6
{[%clk 00:22:54]} {[%emt 00:00:34]} Rxc6 {[%clk 00:37:28]} {[%emt 00:00:19]} 19.
Rxc6 {[%clk 00:22:50]} {[%emt 00:00:14]} bxc6 {[%clk 00:37:36]} {[%emt
00:00:03]} 20. Qc2 {[%clk 00:22:12]} {[%emt 00:00:46]} Qg5 {[%clk 00:31:57]}
{[%emt 00:05:50]} 21. Qxc6 {[%clk 00:18:55]} {[%emt 00:03:27]} Nf4 {[%clk
00:31:30]} {[%emt 00:00:37]} 22. Qf3 {[%clk 00:18:42]} {[%emt 00:00:23]} Nd7
{[%clk 00:29:16]} {[%emt 00:02:34]} 23. Nc4 {[%clk 00:16:53]} {[%emt 00:02:09]}
f6 {[%clk 00:27:31]} {[%emt 00:01:55]} 24. exf6 {[%clk 00:10:27]} {[%emt
00:06:37]} Rxf6 {[%clk 00:27:13]} {[%emt 00:00:28]} 25. Qg3 {[%clk 00:09:47]}
{[%emt 00:00:50]} Ne2+ {[%clk 00:27:20]} {[%emt 00:00:03]} 26. Kh1 {[%clk
00:09:21]} {[%emt 00:00:36]} Nxg3 {[%clk 00:27:17]} {[%emt 00:00:13]} 27. hxg3
{[%clk 00:09:12]} {[%emt 00:00:19]} Rxf2 {[%clk 00:27:01]} {[%emt 00:00:26]} 28.
Ne3 {[%clk 00:08:56]} {[%emt 00:00:26]} Qxg3 {[%clk 00:26:21]} {[%emt
00:00:50]} 29. Bxe6+ {[%clk 00:08:44]} {[%emt 00:00:22]} Kf8 {[%clk 00:26:20]}
{[%emt 00:00:09]} 30. Bxd7 {[%clk 00:08:40]} {[%emt 00:00:16]} Rxb2 {[%clk
00:26:14]} {[%emt 00:00:15]} 31. Rf1+ {[%clk 00:08:42]} {[%emt 00:00:08]} Rf2
{[%clk 00:26:08]} {[%emt 00:00:16]} 32. Re1 {[%clk 00:06:42]} {[%emt 00:02:11]}
Rf7 {[%clk 00:26:09]} {[%emt 00:00:09]} 33. Rc1 {[%clk 00:04:24]} {[%emt
00:02:28]} Rxd7 {[%clk 00:25:31]} {[%emt 00:00:49]} 34. Nf5 {[%clk 00:04:01]}
{[%emt 00:00:33]} Qf4 {[%clk 00:25:15]} {[%emt 00:00:25]} 35. Rc8+ {[%clk
00:03:38]} {[%emt 00:00:34]} Kf7 {[%clk 00:25:14]} {[%emt 00:00:11]} 36. Ng3
{[%clk 00:03:11]} {[%emt 00:00:37]} Rd1 {[%clk 00:25:14]} {[%emt 00:00:10]} 37.
Kh2 {[%clk 00:03:14]} {[%emt 00:00:07]} Qh4 {[%clk 00:25:21]} {[%emt 00:00:04]}
0-1

[Event "Kadettallsvenskan 2018, sodra kvalet"]
[Site "Vegagatan 20, Gothenburg, Sweden"]
[Date "2018.04.14"]
[Round "2.6"]
[White "Rasti, Arvin"]
[Black "Strom, Emil"]
[Result "1-0"]
[TimeControl "45 minutes for the whole game + 10 seconds per move from move one."]
[WhiteFideId "1741160"]
[BlackFideId "1744194"]
[WhiteElo "1920"]
[BlackElo "1155"]

1. d4 {[%clk 00:45:11]} {[%emt 00:00:08]} d5 {[%clk 00:45:10]} {[%emt
00:00:11]} 2. c4 {[%clk 00:45:08]} {[%emt 00:00:13]} Nf6 {[%clk 00:44:54]}
{[%emt 00:00:26]} 3. cxd5 {[%clk 00:45:05]} {[%emt 00:00:11]} Nxd5 {[%clk
00:44:48]} {[%emt 00:00:17]} 4. e4 {[%clk 00:45:08]} {[%emt 00:00:06]} Nf6
{[%clk 00:44:42]} {[%emt 00:00:17]} 5. Nc3 {[%clk 00:45:11]} {[%emt 00:00:08]}
Nc6 {[%clk 00:44:22]} {[%emt 00:00:29]} 6. Bb5 {[%clk 00:44:57]} {[%emt
00:00:23]} Bd7 {[%clk 00:43:56]} {[%emt 00:00:38]} 7. e5 {[%clk 00:44:42]}
{[%emt 00:00:23]} Ng8 {[%clk 00:43:26]} {[%emt 00:00:41]} 8. f4 {[%clk
00:44:26]} {[%emt 00:00:26]} f6 {[%clk 00:42:28]} {[%emt 00:01:08]} 9. e6
{[%clk 00:43:43]} {[%emt 00:00:52]} Bxe6 {[%clk 00:42:01]} {[%emt 00:00:37]} 10.
d5 {[%clk 00:43:45]} {[%emt 00:00:08]} Bxd5 {[%clk 00:41:07]} {[%emt 00:01:05]}
11. Qxd5 {[%clk 00:43:47]} {[%emt 00:00:08]} Qxd5 {[%clk 00:40:55]} {[%emt
00:00:22]} 12. Nxd5 {[%emt 00:00:55]} Rc8 {[%clk 00:40:09]} {[%emt 00:00:02]}
13. Nb4 {[%clk 00:43:51]} {[%emt 00:00:14]} Kd7 {[%clk 00:39:44]} {[%emt
00:00:35]} 14. Be3 {[%clk 00:43:48]} {[%emt 00:00:13]} a6 {[%clk 00:39:39]}
{[%emt 00:00:16]} 15. O-O-O+ {[%clk 00:43:45]} {[%emt 00:00:14]} Ke8 {[%clk
00:39:22]} {[%emt 00:00:24]} 16. Nxa6 {[%clk 00:43:30]} {[%emt 00:00:27]} bxa6
{[%clk 00:38:56]} {[%emt 00:00:36]} 17. Bxc6+ {[%clk 00:43:35]} {[%emt
00:00:05]} Kf7 {[%clk 00:38:53]} {[%emt 00:00:11]} 18. f5 {[%clk 00:43:32]}
{[%emt 00:00:16]} e6 {[%clk 00:38:39]} {[%emt 00:00:24]} 19. fxe6+ {[%clk
00:43:38]} {[%emt 00:00:05]} Kxe6 {[%clk 00:38:38]} {[%emt 00:00:10]} 20. Bd7+
{[%clk 00:43:44]} {[%emt 00:00:03]} Kf7 {[%clk 00:38:23]} {[%emt 00:00:24]} 21.
Bxc8 {[%clk 00:43:47]} {[%emt 00:00:08]} Bd6 {[%clk 00:38:15]} {[%emt
00:00:18]} 22. Bxa6 {[%clk 00:43:43]} {[%emt 00:00:15]} Ne7 {[%clk 00:38:07]}
{[%emt 00:00:18]} 23. Ne2 {[%clk 00:43:31]} {[%emt 00:00:21]} Nf5 {[%clk
00:37:53]} {[%emt 00:00:24]} 24. Bf4 {[%clk 00:43:29]} {[%emt 00:00:11]} Bxf4+
{[%clk 00:37:36]} {[%emt 00:00:27]} 25. Nxf4 {[%clk 00:43:34]} {[%emt
00:00:06]} Ne3 {[%clk 00:37:31]} {[%emt 00:00:16]} 26. Rd7+ {[%clk 00:43:33]}
{[%emt 00:00:10]} Ke8 {[%clk 00:37:22]} {[%emt 00:00:18]} 27. Bb5 {[%clk
00:43:35]} {[%emt 00:00:08]} 1-0